bitfinex/quotes_BTCUSD_20240811
["timestamp","ask_amount","ask_price","bid_price","bid_amount"]
[1723407218336,0.01,58949.0,58943.0,0.002]
[1723407218556,0.08184646,58958.0,58949.0,0.593732]
[1723407218557,0.010827,58950.0,58949.0,0.593732]
[1723407218785,0.010827,58950.0,58949.0,0.75754692]
[1723407218996,0.010827,58950.0,58949.0,0.61955901]
[1723407219205,0.010827,58950.0,58949.0,0.85705201]
[1723407219418,0.000827,58950.0,58949.0,0.85705201]
[1723407219642,0.000827,58950.0,58949.0,1.09454501]
[1723407219879,0.000827,58950.0,58949.0,0.85905201]
[1723407220130,0.000827,58950.0,58949.0,1.26041084]
[1723407220348,0.000827,58950.0,58949.0,1.27041084]
[1723407220583,0.000827,58950.0,58949.0,1.41354501]
[1723407220803,0.000827,58950.0,58949.0,1.4829807]
[1723407221012,0.000827,58950.0,58949.0,1.86132611]
[1723407221228,0.000827,58950.0,58949.0,1.77990674]
[1723407221440,0.000827,58950.0,58949.0,1.89853101]
[1723407221648,0.000827,58950.0,58949.0,1.93148183]
[1723407221853,0.000827,58950.0,58949.0,1.93146967]
[1723407222061,0.000827,58950.0,58949.0,2.16896267]
[1723407222287,0.000827,58950.0,58949.0,1.93146967]
[1723407222502,0.000827,58950.0,58949.0,1.90187197]
[1723407222739,0.000827,58950.0,58949.0,1.76303801]
[1723407222949,0.01,58972.0,58949.0,1.76303801]
[1723407222950,0.01,58972.0,58967.0,0.83097]
[1723407223161,0.01,58972.0,58967.0,1.26646414]
[1723407223369,0.01,58972.0,58967.0,1.26644855]
[1723407223370,0.06014646,58968.0,58967.0,1.26644855]
[1723407223580,0.01,58977.0,58967.0,1.26644855]
[1723407223789,0.5013,58983.0,58967.0,1.26644855]
[1723407223790,0.01,58981.0,58977.0,0.59345]
[1723407224036,0.0083,58985.0,58977.0,0.51995992]
[1723407224252,0.0083,58985.0,58984.0,0.830732]
[1723407224465,0.01,58982.0,58978.0,0.14080911]
[1723407224684,0.01,58978.0,58977.0,0.059345]
[1723407224891,0.2037,58978.0,58963.0,0.05941623]
[1723407225101,0.08184646,58964.0,58963.0,0.356155]
[1723407225318,0.08184646,58975.0,58974.0,0.59348]
[1723407225523,0.08184646,58975.0,58974.0,1.13550559]
[1723407225731,0.08184646,58975.0,58974.0,1.24905615]
[1723407225936,0.08184646,58981.0,58980.0,0.59342]
[1723407226137,0.01,58986.0,58984.0,0.356028]
[1723407226345,0.08184646,58987.0,58984.0,0.99454692]
[1723407226553,0.01,58986.0,58984.0,0.75719492]
[1723407226785,0.08184646,58987.0,58984.0,1.07026641]
[1723407226995,0.11172096,58994.0,58984.0,1.23405322]
[1723407227200,0.11172096,58994.0,58984.0,1.23404646]
[1723407227616,0.11172096,58994.0,58984.0,1.47139846]
[1723407227848,0.10172096,58994.0,58984.0,1.23404646]
[1723407228055,0.11172096,58994.0,58984.0,1.23404646]
[1723407228265,0.00826,58985.0,58984.0,1.47139846]
[1723407228465,0.00826,58985.0,58984.0,1.49339846]
[1723407228669,0.00826,58985.0,58984.0,1.81680421]
[1723407228874,0.00826,58985.0,58984.0,1.77239846]
[1723407228875,0.00926,58985.0,58984.0,1.77239846]
[1723407229082,0.00926,58985.0,58984.0,1.79880421]
[1723407229289,0.0198745,58994.0,58988.0,0.830676]
[1723407229503,0.0198745,58994.0,58988.0,1.15827097]
[1723407229722,0.0198745,58994.0,58988.0,1.68417852]
[1723407230177,0.0198745,58994.0,58988.0,1.73934585]
[1723407230404,0.0083,59005.0,58988.0,1.73934585]
[1723407230405,0.0083,59005.0,59004.0,1.316952]
[1723407230619,0.0083,59005.0,59004.0,1.19670677]
[1723407230850,0.0083,59005.0,59004.0,1.16215406]
[1723407231056,0.0083,59005.0,59004.0,1.16242073]
[1723407231307,0.0183,59005.0,59004.0,0.92514873]
[1723407231527,0.0183,59005.0,59004.0,0.39600148]
[1723407232003,0.0183,59005.0,59004.0,0.16381492]
[1723407232234,0.0183,59005.0,59004.0,0.75699492]
[1723407232464,0.0183,59005.0,59004.0,1.01726692]
[1723407232465,0.0083,59005.0,59004.0,1.01726692]
[1723407232679,0.0083,59005.0,59004.0,1.01926692]
[1723407232893,0.0083,59005.0,59004.0,1.12119361]
[1723407234072,0.0083,59005.0,59004.0,1.11919361]
[1723407234305,0.0143,59005.0,59004.0,1.12019361]
[1723407234956,0.0083,59005.0,59004.0,1.11919361]
[1723407235188,0.0083,59005.0,59004.0,1.12119361]
[1723407235665,0.0083,59005.0,59004.0,1.65746561]
[1723407235895,0.000829,59016.0,59004.0,1.65746561]
[1723407235896,0.00829,59027.0,59026.0,0.118591]
[1723407236112,0.00829,59027.0,59026.0,0.85314]
[1723407236322,0.00829,59027.0,59026.0,1.27305267]
[1723407236540,0.00829,59027.0,59026.0,1.49010548]
[1723407236759,0.00829,59027.0,59026.0,1.7956572]
[1723407236965,0.00829,59027.0,59026.0,1.55894671]
[1723407237175,0.00829,59027.0,59026.0,1.55895218]
[1723407237389,0.00829,59027.0,59026.0,1.58822088]
[1723407238491,0.00829,59027.0,59026.0,1.65411506]
[1723407238700,0.00829,59027.0,59026.0,1.65611506]
[1723407238902,0.00829,59027.0,59026.0,1.65211506]
[1723407239333,0.00829,59027.0,59026.0,1.63011506]
[1723407239572,1e-06,59029.0,59028.0,1.336462]
[1723407239783,1e-06,59029.0,59028.0,2.26502084]
[1723407239996,1e-06,59029.0,59028.0,1.82409557]
[1723407240420,1e-06,59029.0,59028.0,1.71080227]
[1723407240629,1e-06,59029.0,59028.0,1.85144899]
[1723407240802,1e-06,59029.0,59028.0,1.79802426]
[1723407241014,1e-06,59029.0,59028.0,2.01782968]
[1723407241218,1e-06,59029.0,59028.0,2.08717548]
[1723407241417,1e-06,59029.0,59028.0,2.32435048]
[1723407241590,0.001001,59029.0,59028.0,2.33434927]
[1723407241788,0.001001,59029.0,59028.0,2.27500468]
[1723407241995,1e-06,59035.0,59034.0,0.022]
[1723407242206,1e-06,59035.0,59034.0,2.47710211]
[1723407242385,1e-06,59035.0,59034.0,2.71461457]
[1723407242579,1e-06,59035.0,59034.0,2.74398583]
[1723407242806,0.49107874,59056.0,59034.0,2.74398583]
[1723407242807,0.49107874,59056.0,59055.0,0.128533]
[1723407243012,0.49107874,59056.0,59055.0,1.10358873]
[1723407243248,0.00825,59065.0,59064.0,0.592577]
[1723407243486,0.00825,59065.0,59064.0,1.21750026]
[1723407243726,0.00825,59065.0,59064.0,0.95746926]
[1723407244121,0.00825,59065.0,59064.0,0.95744676]
[1723407244247,0.00825,59065.0,59064.0,1.21747776]
[1723407244650,0.00825,59065.0,59064.0,1.24418627]
[1723407244850,0.00825,59065.0,59064.0,1.75350876]
[1723407245078,0.00825,59065.0,59064.0,1.79306777]
[1723407245293,0.00825,59065.0,59064.0,1.99016732]
[1723407245437,0.01125,59065.0,59064.0,2.11316732]
[1723407245639,0.01125,59065.0,59064.0,2.12316732]
[1723407245898,0.00829,59076.0,59068.0,1.088563]
[1723407246103,0.00829,59076.0,59068.0,1.86348618]
[1723407246314,0.00829,59076.0,59068.0,2.26305167]
[1723407246725,0.00829,59076.0,59068.0,2.25305167]
[1723407246927,0.00829,59076.0,59068.0,2.00603767]
[1723407247134,0.00829,59076.0,59068.0,2.16770635]
[1723407247351,0.00829,59076.0,59068.0,2.16570635]
[1723407248206,0.00829,59076.0,59068.0,2.16770635]
[1723407248422,0.00829,59076.0,59068.0,2.06770635]
[1723407248602,0.00829,59076.0,59068.0,2.06970635]
[1723407249016,0.00829,59076.0,59068.0,1.53189235]
[1723407249216,0.00829,59076.0,59068.0,0.26405849]
[1723407249217,0.3124,59072.0,59068.0,0.26405849]
[1723407249418,0.5011,59069.0,59068.0,0.2048732]
[1723407249587,0.5011,59069.0,59068.0,0.14560647]
[1723407250007,0.856615,59069.0,59068.0,0.14560647]
[1723407250276,0.856615,59069.0,59038.0,0.2968]
[1723407250277,0.3124,59054.0,59044.0,0.29644091]
[1723407250482,0.08184646,59045.0,59030.0,0.05933191]
[1723407250685,0.08184646,59045.0,59044.0,0.355666]
[1723407250889,0.08184646,59045.0,59044.0,0.118555]
[1723407251325,0.08184646,59045.0,59035.0,0.16381492]
[1723407251326,0.118558,59043.0,59035.0,0.16381492]
[1723407251529,0.39424646,59045.0,59035.0,0.16381492]
[1723407251530,0.39424646,59045.0,59035.0,0.35572]
[1723407251531,0.08184646,59036.0,59035.0,0.35572]
[1723407251733,0.08184646,59036.0,59035.0,1.02940092]
[1723407251934,0.08184646,59036.0,59035.0,0.035572]
[1723407252136,0.39424646,59036.0,59035.0,0.35572]
[1723407252334,0.39424646,59036.0,59035.0,0.592867]
[1723407252550,0.39424646,59036.0,59035.0,0.118573]
[1723407253372,0.39424646,59036.0,59034.0,0.0009086]
[1723407253554,0.501,59035.0,59034.0,0.0009086]
[1723407253796,0.619573,59035.0,59034.0,0.0009086]
[1723407254000,0.85672,59035.0,59034.0,0.0009086]
[1723407254219,1.26768192,59035.0,59034.0,0.0009086]
[1723407254437,1.26768192,59035.0,59008.0,0.05936293]
[1723407254438,0.3124,59025.0,59008.0,0.05936293]
[1723407254625,0.3124,59025.0,59005.0,0.237264]
[1723407254626,0.08184646,59023.0,59022.0,0.118599]
[1723407255269,0.08184646,59023.0,59009.0,0.19347761]
[1723407255270,0.08184646,59023.0,59019.0,0.118604]
[1723407255476,0.08184646,59023.0,59022.0,0.118599]
[1723407255682,0.08184646,59023.0,59022.0,0.51961292]
[1723407255887,0.08184646,59023.0,59022.0,0.99401092]
[1723407256093,0.08184646,59023.0,59022.0,1.09341201]
[1723407256919,0.3124,59035.0,59025.0,0.355776]
[1723407257118,0.3124,59035.0,59034.0,0.592877]
[1723407257523,0.3124,59035.0,59034.0,0.355726]
[1723407257937,0.3124,59035.0,59034.0,0.592877]
[1723407258188,0.3124,59035.0,59034.0,0.73355696]
[1723407258381,0.00991545,59080.0,59034.0,0.73355696]
[1723407258382,0.3124,59043.0,59042.0,0.118559]
[1723407258583,0.3124,59043.0,59042.0,1.13441088]
[1723407259189,0.08184646,59051.0,59044.0,0.592777]
[1723407259392,0.08184646,59051.0,59044.0,1.24521264]
[1723407259599,0.08184646,59051.0,59044.0,1.45623838]
[1723407259797,0.08184646,59051.0,59044.0,0.84428672]
[1723407260051,0.08184646,59051.0,59044.0,0.60717572]
[1723407260262,0.08184646,59051.0,59044.0,0.11082976]
[1723407260441,0.08184646,59051.0,59044.0,0.70732496]
[1723407260671,0.08184646,59051.0,59044.0,0.47021396]
[1723407260874,0.08184646,59051.0,59044.0,0.70732496]
[1723407261050,0.08184646,59051.0,59044.0,1.10825088]
[1723407261312,0.02,59045.0,59044.0,1.34536188]
[1723407261511,0.021,59045.0,59044.0,1.50383191]
[1723407261951,0.02,59045.0,59044.0,1.73994291]
[1723407262155,0.3324,59045.0,59044.0,0.66403286]
[1723407262358,0.3334,59045.0,59044.0,0.39372831]
[1723407262562,0.3334,59045.0,59044.0,0.14063712]
[1723407262563,0.522,59045.0,59044.0,0.14063712]
[1723407262763,0.522,59045.0,59044.0,0.25919212]
[1723407263201,0.522,59045.0,59044.0,0.118555]
[1723407263403,0.522,59045.0,59044.0,0.25922016]
[1723407263617,0.522,59045.0,59044.0,0.78307588]
[1723407263618,0.521,59045.0,59044.0,0.78307588]
[1723407263828,0.3324,59045.0,59044.0,0.9478908]
[1723407264045,0.3324,59045.0,59044.0,1.1850018]
[1723407264245,0.3324,59045.0,59044.0,1.21824523]
[1723407264458,0.020826,59045.0,59044.0,1.45435623]
[1723407264742,0.020826,59045.0,59044.0,1.39499955]
[1723407264886,0.020826,59045.0,59044.0,1.65511055]
[1723407265309,0.020826,59045.0,59044.0,1.90222155]
[1723407265516,0.020826,59045.0,59044.0,2.20732155]
[1723407265824,0.02,59065.0,59062.0,0.829636]
[1723407266026,0.02,59065.0,59062.0,1.15705518]
[1723407266246,0.01829,59076.0,59068.0,0.829549]
[1723407266457,0.01829,59076.0,59068.0,1.13396818]
[1723407266685,0.01829,59076.0,59068.0,1.2532963]
[1723407266686,0.010926,59069.0,59068.0,1.2532963]
[1723407267121,0.000926,59069.0,59068.0,1.2532963]
[1723407267321,0.000926,59069.0,59068.0,1.5133103]
[1723407267527,0.000926,59069.0,59068.0,1.2762963]
[1723407267729,0.000926,59069.0,59068.0,1.2542963]
[1723407267950,0.0001,59089.0,59074.0,1.303445]
[1723407268153,0.00011,59104.0,59094.0,0.796865]
[1723407268374,0.00011,59104.0,59094.0,1.95311661]
[1723407268625,1e-06,59109.0,59106.0,0.01]
[1723407268846,0.00828,59113.0,59112.0,0.602095]
[1723407268847,0.00313785,59113.0,59112.0,0.602095]
[1723407269060,0.00313785,59113.0,59112.0,2.25847749]
[1723407269265,0.00829,59125.0,59123.0,1.537773]
[1723407269480,0.00829,59125.0,59123.0,2.00384374]
[1723407269687,0.00829,59125.0,59123.0,1.85669422]
[1723407269884,0.00829,59125.0,59123.0,2.02050914]
[1723407270510,0.00829,59125.0,59124.0,1.065555]
[1723407270725,0.00829,59125.0,59124.0,1.53501871]
[1723407270927,0.00829,59125.0,59124.0,1.27522871]
[1723407271151,0.01829,59125.0,59124.0,0.14043001]
[1723407271376,0.01829,59125.0,59124.0,0.75578992]
[1723407271586,0.01829,59125.0,59124.0,0.51899992]
[1723407271795,0.01829,59125.0,59124.0,0.16381492]
[1723407272022,0.01829,59125.0,59123.0,0.128397]
[1723407272023,0.01,59124.0,59123.0,0.128397]
[1723407272230,0.01,59124.0,59123.0,0.30505162]
[1723407272436,0.01,59124.0,59123.0,0.29505162]
[1723407272658,0.01,59124.0,59123.0,0.53184562]
[1723407273060,0.01,59124.0,59123.0,0.76863962]
[1723407273277,0.00996,59124.0,59123.0,0.76863962]
[1723407273495,0.00829,59125.0,59123.0,0.16381492]
[1723407273731,0.00829,59125.0,59102.0,0.2918]
[1723407273732,0.00996,59119.0,59118.0,0.118406]
[1723407274365,0.00996,59119.0,59118.0,0.35522]
[1723407274855,0.08184646,59124.0,59102.0,0.355317]
[1723407274856,0.00996,59103.0,59102.0,0.355317]
[1723407275067,0.09180646,59103.0,59102.0,0.79154162]
[1723407275272,0.09180646,59103.0,59102.0,0.93203722]
[1723407275473,0.09180646,59103.0,59102.0,0.79154162]
[1723407275693,0.09180646,59103.0,59102.0,0.75154162]
[1723407276322,0.09180646,59103.0,59102.0,0.51466362]
[1723407276458,0.09180646,59103.0,59102.0,0.3508487]
[1723407276664,0.09180646,59103.0,59102.0,0.1539707]
[1723407276884,0.09180646,59103.0,59081.0,0.2968]
[1723407276885,0.00996,59087.0,59086.0,0.355413]
[1723407277084,0.00996,59087.0,59086.0,0.89669373]
[1723407277284,0.00996,59092.0,59091.0,0.118461]
[1723407277495,0.09180646,59093.0,59092.0,0.592295]
[1723407277719,0.08184646,59093.0,59092.0,0.99302792]
[1723407277913,0.09180646,59093.0,59092.0,0.99592589]
[1723407278114,0.09180646,59093.0,59092.0,0.85541271]
[1723407278364,0.08184646,59093.0,59092.0,0.85541271]
[1723407278537,0.09180646,59093.0,59092.0,0.85541271]
[1723407278756,0.09180646,59093.0,59092.0,0.85641271]
[1723407278957,0.08184646,59093.0,59092.0,1.09333071]
[1723407279408,0.08184646,59093.0,59092.0,1.23384058]
[1723407279622,0.08184646,59093.0,59092.0,1.25684058]
[1723407279749,0.08184646,59109.0,59108.0,0.236854]
[1723407279948,0.08184646,59109.0,59108.0,0.56578132]
[1723407280193,0.08184646,59109.0,59108.0,1.27634332]
[1723407280396,0.01,59119.0,59108.0,0.35097816]
[1723407280571,0.09463146,59124.0,59114.0,0.99271992]
[1723407280572,0.49107874,59123.0,59114.0,0.99271992]
[1723407280917,0.49107874,59122.0,59114.0,1.15619776]
[1723407281121,0.08267146,59124.0,59114.0,1.15619776]
[1723407281122,0.09180646,59115.0,59114.0,1.1313397]
[1723407282278,0.08267146,59124.0,59114.0,1.1313397]
[1723407282279,0.02483722,59124.0,59114.0,0.2814347]
[1723407282481,0.02483722,59124.0,59123.0,0.118397]
[1723407282684,0.02483722,59124.0,59123.0,0.355191]
[1723407283209,0.02483722,59124.0,59123.0,0.118397]
[1723407283414,0.02483722,59124.0,59120.0,0.236804]
[1723407283629,0.02483722,59124.0,59121.0,0.0236804]
[1723407284208,0.2878,59123.0,59115.0,0.236822]
[1723407284416,0.2878,59123.0,59109.0,0.236849]
[1723407284417,0.08184646,59116.0,59109.0,0.236849]
[1723407284588,0.08184646,59116.0,59115.0,0.118413]
[1723407284826,0.08184646,59116.0,59115.0,0.355239]
[1723407285440,0.09384646,59116.0,59115.0,0.355239]
[1723407285660,0.08184646,59116.0,59115.0,0.592065]
[1723407285865,0.08184646,59116.0,59115.0,0.355239]
[1723407286273,0.2878,59123.0,59115.0,0.22302142]
[1723407286488,0.08184646,59117.0,59116.0,0.52243087]
[1723407286694,0.08184646,59117.0,59116.0,0.75586992]
[1723407287308,0.08184646,59117.0,59116.0,0.99269192]
[1723407287483,0.08184646,59117.0,59116.0,0.75586992]
[1723407287831,0.08184646,59117.0,59116.0,0.355233]
[1723407288031,0.08184646,59117.0,59116.0,0.1539343]
[1723407288032,0.37364646,59117.0,59116.0,0.1539343]
[1723407288445,0.37364646,59117.0,59116.0,0.6275783]
[1723407288650,0.37364646,59117.0,59116.0,0.3907563]
[1723407289082,0.36964646,59117.0,59116.0,0.3916638]
[1723407289630,0.36964646,59117.0,59116.0,0.1548418]
[1723407289831,0.36964646,59117.0,59116.0,0.1558418]
[1723407290029,0.37564646,59117.0,59116.0,0.1558418]
[1723407290253,0.37564646,59117.0,59116.0,0.0374308]
[1723407290484,0.36964646,59117.0,59116.0,0.1548418]
[1723407290817,0.55674646,59117.0,59116.0,0.0009075]
[1723407291044,0.92397346,59117.0,59116.0,0.0009075]
[1723407291245,0.92797346,59117.0,59116.0,0.0009075]
[1723407291872,1.16479146,59117.0,59116.0,0.0009075]
[1723407292275,0.92797346,59117.0,59116.0,0.0009075]
[1723407292445,0.69115546,59117.0,59116.0,0.0009075]
[1723407292648,0.92797346,59117.0,59116.0,0.0009075]
[1723407292915,0.57274646,59117.0,59116.0,0.0009075]
[1723407293128,0.02483722,59124.0,59122.0,0.236798]
[1723407293129,0.2918,59123.0,59122.0,0.236798]
[1723407293329,0.2918,59123.0,59116.0,0.0019075]
[1723407293530,0.006,59117.0,59116.0,0.3571405]
[1723407293733,0.006,59117.0,59116.0,0.73443694]
[1723407293923,0.2918,59123.0,59122.0,0.355197]
[1723407294162,0.2918,59123.0,59122.0,0.17599414]
[1723407294364,0.2918,59123.0,59122.0,0.76798914]
[1723407294778,0.2918,59123.0,59122.0,0.29439314]
[1723407294982,0.19364014,59123.0,59122.0,0.53119114]
[1723407295202,0.08267146,59124.0,59122.0,0.53119114]
[1723407295203,0.08267146,59124.0,59123.0,0.355191]
[1723407295409,0.08267146,59124.0,59123.0,0.19519531]
[1723407295614,0.08267146,59124.0,59123.0,0.33566489]
[1723407296034,0.08267146,59124.0,59123.0,0.73627381]
[1723407296235,0.08267146,59124.0,59123.0,0.49947981]
[1723407296461,0.08267146,59124.0,59123.0,0.21726789]
[1723407296701,0.08267146,59124.0,59123.0,0.25886658]
[1723407296901,0.08267146,59124.0,59123.0,0.14046958]
[1723407296902,0.09267146,59124.0,59123.0,0.14046958]
[1723407297104,0.08267146,59124.0,59123.0,0.25886658]
[1723407297535,0.09467146,59124.0,59123.0,0.14146958]
[1723407297740,0.09397146,59124.0,59123.0,0.14146958]
[1723407297945,0.49216646,59124.0,59123.0,0.15461654]
[1723407298388,0.39477146,59124.0,59123.0,0.15561654]
[1723407298795,0.38477146,59124.0,59123.0,0.15562565]
[1723407299431,0.50316646,59124.0,59123.0,0.15462565]
[1723407299603,0.49216646,59124.0,59123.0,0.15462565]
[1723407299836,0.38577146,59124.0,59123.0,0.15562565]
[1723407300274,0.37377146,59124.0,59123.0,0.15462565]
[1723407300508,0.37377146,59124.0,59123.0,0.14047869]
[1723407300509,0.92805646,59124.0,59123.0,0.14047869]
[1723407300707,0.023125,59124.0,59123.0,0.89727861]
[1723407300927,0.013125,59124.0,59123.0,1.13407261]
[1723407301124,0.012125,59124.0,59123.0,0.89627861]
[1723407301330,0.012125,59124.0,59123.0,0.87503638]
[1723407301543,0.021125,59124.0,59123.0,0.14146591]
[1723407301753,0.013125,59124.0,59123.0,0.14146591]
[1723407301972,0.013125,59124.0,59123.0,0.14148703]
[1723407302196,0.38477146,59124.0,59123.0,0.14148703]
[1723407302407,1.16584646,59124.0,59123.0,0.14148703]
[1723407302675,1.16584646,59124.0,59123.0,0.15463573]
[1723407302676,0.56074646,59124.0,59123.0,0.15463573]
[1723407303088,0.67914146,59124.0,59123.0,0.15463573]
[1723407303302,0.67914146,59124.0,59123.0,0.15563573]
[1723407303303,0.09197146,59124.0,59123.0,0.15563573]
[1723407303509,0.09197146,59124.0,59123.0,0.51082673]
[1723407303709,0.08197146,59124.0,59123.0,0.27303273]
[1723407303950,0.09297146,59124.0,59123.0,0.51082673]
[1723407304180,0.09297146,59124.0,59123.0,0.91143565]
[1723407304181,0.011125,59124.0,59123.0,0.91143565]
[1723407304400,0.011125,59124.0,59123.0,1.14722965]
[1723407304616,0.00829,59125.0,59124.0,0.591975]
[1723407304821,0.00829,59125.0,59124.0,1.69620822]
[1723407305068,0.00829,59125.0,59124.0,1.99660822]
[1723407305280,0.00829,59125.0,59124.0,2.35639822]
[1723407306133,0.00835,59132.0,59131.0,1.302191]
[1723407306338,0.00835,59132.0,59131.0,2.3271235]
[1723407306514,0.00835,59132.0,59131.0,2.4271235]
[1723407307185,0.002,59145.0,59138.0,1.065303]
[1723407307391,0.002,59145.0,59138.0,1.22911792]
[1723407307607,0.000225,59149.0,59140.0,0.828541]
[1723407307808,0.000225,59149.0,59140.0,1.7032995]
[1723407308020,0.000225,59149.0,59140.0,0.99235592]
[1723407308226,0.000125,59148.0,59140.0,1.47309251]
[1723407308426,0.000125,59148.0,59140.0,1.26251221]
[1723407308841,0.000125,59148.0,59140.0,1.47309251]
[1723407309274,0.0001,59149.0,59140.0,1.02578621]
[1723407309474,0.0001,59149.0,59140.0,0.78906021]
[1723407309680,0.0001,59149.0,59140.0,1.02578621]
[1723407309907,0.0001,59149.0,59140.0,0.78906021]
[1723407310320,0.49417,59141.0,59140.0,0.30920179]
[1723407310557,0.00837,59141.0,59140.0,0.66429079]
[1723407310759,0.00837,59141.0,59140.0,0.65929079]
[1723407310969,0.00837,59141.0,59140.0,0.89801679]
[1723407311187,0.00837,59141.0,59140.0,0.39600347]
[1723407311390,0.00837,59141.0,59140.0,0.21016468]
[1723407311597,0.00837,59141.0,59140.0,0.26078841]
[1723407311797,0.00837,59141.0,59140.0,0.30624033]
[1723407312000,0.00837,59141.0,59140.0,0.42460159]
[1723407312545,0.00837,59141.0,59140.0,0.89605358]
[1723407312771,0.01537,59141.0,59140.0,0.66032758]
[1723407312927,0.01537,59141.0,59140.0,0.75003384]
[1723407313134,0.01537,59141.0,59140.0,0.98675984]
[1723407313336,0.00837,59141.0,59140.0,0.98575984]
[1723407313764,0.00837,59141.0,59140.0,1.22248584]
[1723407313992,0.00837,59141.0,59140.0,1.51858584]
[1723407314216,0.01237,59141.0,59140.0,1.51858584]
[1723407314892,0.01237,59141.0,59140.0,1.75531184]
[1723407315092,0.01237,59141.0,59140.0,2.31240414]
[1723407315307,0.01237,59141.0,59140.0,2.07567814]
[1723407315709,0.00837,59141.0,59140.0,2.31240414]
[1723407315914,0.01237,59141.0,59140.0,2.07567814]
[1723407316538,0.00837,59141.0,59140.0,2.07567814]
[1723407316738,0.0001,59149.0,59141.0,0.15742088]
[1723407316945,0.0203511,59165.0,59164.0,0.118315]
[1723407316946,0.0183511,59165.0,59164.0,0.118315]
[1723407317211,0.0183511,59165.0,59164.0,1.29187988]
[1723407317412,0.0183511,59165.0,59164.0,2.24934041]
[1723407317644,0.0183511,59165.0,59164.0,2.29853499]
[1723407317885,0.0183511,59165.0,59164.0,0.98548614]
[1723407318082,0.0183111,59165.0,59164.0,0.98548614]
[1723407318285,0.0183111,59165.0,59164.0,1.2220698]
[1723407318489,0.0183111,59165.0,59164.0,0.9854398]
[1723407318742,0.0183111,59165.0,59164.0,1.01329501]
[1723407318976,0.6624501,59165.0,59164.0,0.14034362]
[1723407319146,0.000125,59159.0,59152.0,0.00338072]
[1723407319344,0.3075111,59165.0,59153.0,0.42253208]
[1723407319345,0.08184646,59154.0,59153.0,0.42253208]
[1723407319515,0.08184646,59164.0,59153.0,0.30419508]
[1723407319725,0.08184646,59164.0,59144.0,0.02564219]
[1723407319726,0.002,59155.0,59144.0,0.02564219]
[1723407319962,0.08184646,59151.0,59150.0,0.355029]
[1723407320226,0.1966,59149.0,59133.0,0.059221]
[1723407320423,0.1966,59149.0,59130.0,0.1974]
[1723407320424,0.000125,59156.0,59155.0,0.236666]
[1723407320572,0.0183111,59165.0,59154.0,0.118334]
[1723407320776,0.0183111,59165.0,59140.0,0.2961]
[1723407320777,0.0183111,59165.0,59140.0,0.355321]
[1723407320982,0.0183111,59165.0,59160.0,0.118322]
[1723407321142,0.0183111,59165.0,59140.0,0.2961]
[1723407321348,0.0183111,59165.0,59150.0,0.001]
[1723407321617,0.0183111,59165.0,59158.0,0.118327]
[1723407321618,0.000125,59159.0,59158.0,0.118327]
[1723407321813,0.0203111,59165.0,59150.0,0.001]
[1723407322076,0.08184646,59157.0,59155.0,0.118332]
[1723407322315,0.08184646,59157.0,59150.0,0.001]
[1723407322488,0.2892,59156.0,59144.0,0.1]
[1723407322712,0.2892,59156.0,59155.0,0.118333]
[1723407322910,0.0183111,59165.0,59164.0,0.591575]
[1723407323036,0.0183111,59165.0,59164.0,0.96859184]
[1723407323441,0.0183111,59165.0,59164.0,1.00370174]
[1723407323642,0.0183111,59165.0,59164.0,0.76707174]
[1723407323849,0.0183111,59165.0,59164.0,0.49533184]
[1723407324053,0.0183111,59165.0,59164.0,0.591575]
[1723407324256,0.0183111,59165.0,59164.0,0.81454742]
[1723407324540,0.0183111,59165.0,59164.0,0.61632653]
[1723407324541,0.0133111,59165.0,59164.0,0.61632653]
[1723407324863,0.0133111,59165.0,59164.0,0.58391742]
[1723407325289,0.0133111,59165.0,59164.0,0.82054742]
[1723407325917,0.4991111,59165.0,59164.0,0.0591575]
[1723407326132,0.4991111,59165.0,59149.0,0.0009108]
[1723407326133,0.4991111,59165.0,59156.0,0.236659]
[1723407326338,0.4991111,59165.0,59164.0,0.002]
[1723407326339,0.6174241,59165.0,59164.0,0.002]
[1723407326549,0.5012361,59165.0,59164.0,0.002]
[1723407326759,0.5012361,59165.0,59155.0,0.236663]
[1723407326760,0.000125,59156.0,59155.0,0.354996]
[1723407326992,0.000125,59159.0,59158.0,0.354981]
[1723407327187,0.3025111,59165.0,59164.0,0.23663]
[1723407327188,0.0133111,59165.0,59164.0,0.23663]
[1723407327399,0.0133111,59165.0,59164.0,0.591575]
[1723407327602,0.0133111,59165.0,59164.0,0.99201992]
[1723407327815,0.0133111,59165.0,59164.0,1.46920622]
[1723407328048,0.0133111,59165.0,59164.0,1.80583622]
[1723407328263,0.0133111,59165.0,59164.0,2.12493622]
[1723407328467,0.0133111,59165.0,59164.0,2.12491133]
[1723407328690,0.0133111,59165.0,59164.0,2.18412633]
[1723407328872,0.0133111,59165.0,59164.0,2.15732044]
[1723407329177,0.000125,59179.0,59164.0,2.15732044]
[1723407329178,0.000125,59179.0,59164.0,1.05907633]
[1723407329381,0.00838,59184.0,59183.0,0.852031]
[1723407329593,0.00838,59184.0,59183.0,1.93371102]
[1723407329803,0.00838,59184.0,59183.0,2.39830211]
[1723407330236,0.0001,59189.0,59188.0,1.064403]
[1723407330449,0.00827,59201.0,59200.0,1.199615]
[1723407330655,0.00827,59201.0,59200.0,2.03572034]
[1723407330858,1e-06,59201.0,59200.0,2.8278114]
[1723407331069,0.00827,59225.0,59221.0,0.118201]
[1723407331070,0.49107874,59222.0,59221.0,0.118201]
[1723407331276,0.00827,59225.0,59221.0,0.118201]
[1723407331277,0.00827,59225.0,59224.0,0.354585]
[1723407331489,0.00827,59225.0,59224.0,1.44010934]
[1723407331710,0.00827,59225.0,59224.0,1.70876925]
[1723407331918,0.00827,59225.0,59224.0,2.02036925]
[1723407332132,0.00827,59225.0,59224.0,1.85717903]
[1723407332329,0.00827,59225.0,59224.0,2.11957142]
[1723407332464,0.00827,59225.0,59224.0,1.02659142]
[1723407332683,0.00827,59225.0,59224.0,0.85399191]
[1723407332881,0.00827,59230.0,59224.0,0.85399191]
[1723407332882,0.00827,59230.0,59229.0,0.590925]
[1723407333349,0.00827,59230.0,59229.0,0.75473992]
[1723407333618,0.00827,59230.0,59229.0,1.04651903]
[1723407333880,0.00827,59230.0,59229.0,1.18670552]
[1723407334288,0.00827,59230.0,59229.0,1.42307552]
[1723407334501,0.00827,59230.0,59229.0,2.04749947]
[1723407334717,0.0110957,59250.0,59243.0,0.827099]